Cogmind - Beta 15 @@@ ROGUE MODE // 2025.05.17 @ 18:22:30 Player: Cheeriohz Result: Destroyed by 1E-PDK(p) with EM Pulse Gun Performance ------------- Evolutions (0) 0 Regions Visited (3) 600 Robots Destroyed (3) 15 Value Destroyed (20) 20 Prototype IDs (6) 120 Alien Tech Used (0) 0 Bonus (300) 300 TOTAL SCORE: 1055 Bonus ------- Registered with UFD 300 Cogmind --------- Core Integrity 0/250 Matter 300/300 Energy 100/100 System Corruption 35% Temperature Cool (0) Movement Core (50) Location -8/Scraptown Parts ------- > --- POWER (1) -------- (None) > --- PROPULSION (2) --- (None) > --- UTILITY (2) ------ (None) > --- WEAPON (2) ------- (None) > --- INVENTORY (5) ---- Ion Engine Light Treads Improved Terrain Scanner Seismic Detector Grenade Launcher Peak State ------------ > --- POWER ------------ Light Ion Engine > --- PROPULSION ------- Wheel Wheel > --- UTILITY ---------- Scrap Shield > --- WEAPON ----------- Plasma Rifle System Spiker > --- INVENTORY -------- Ion Engine Light Treads Improved Terrain Scanner Seismic Detector Grenade Launcher [Rating: 22] Favorites ----------- Power Light Ion Engine Engine Light Ion Engine Propulsion Wheel Leg Aluminum Leg Wheel Wheel Utility Scrap Shield Device Seismic Detector Storage Small Storage Unit Protection Scrap Shield Weapon Assault Rifle Energy Gun Plasma Rifle Ballistic Gun Assault Rifle Special Weapon System Spiker Build | -11 -10 -10 -8 ------- Run | Yrd Mat Sub Scr Slots Evolved . | . . . . Power . | . . . . Propulsion . | . . . . Utility . | . . . . Weapon . | . . . . Parts Attached 8 | 5 . 1 2 Power . | . . . . Engine . | . . . . Core . | . . . . Reactor . | . . . . Propulsion 4 | 4 . . . Treads . | . . . . Leg . | . . . . Wheel 4 | 4 . . . Hover . | . . . . Flight . | . . . . Utility 2 | 1 . 1 . Device 1 | 1 . . . Storage . | . . . . Processor . | . . . . Hackware . | . . . . Protection 1 | . . 1 . Artifact . | . . . . Weapon 2 | . . . 2 Energy Gun 1 | . . . 1 Energy Cannon . | . . . . Ballistic Gun . | . . . . Ballistic Cannon . | . . . . Launcher . | . . . . Special Weapon 1 | . . . 1 Impact Weapon . | . . . . Slashing Weapon . | . . . . Piercing Weapon . | . . . . Special Melee Weapon . | . . . . Unidentified Prototypes . | . . . . Parts Lost 5 | . . . 5 Power 1 | . . . 1 Propulsion 1 | . . . 1 Utility 1 | . . . 1 Weapon 2 | . . . 2 Highest Loss Streak 4 | . . . 4 To Critical Strikes . | . . . . Average Backups 5 | 6 7 7 5 Power 1 | 1 1 1 1 Propulsion 1 | 3 3 2 1 Utility 1 | . 2 1 2 Weapon 1 | 1 1 1 1 Tool/Special . | . . . . Unused Backups 11 | 2 . 2 7 Power 2 | . . . 2 Propulsion 3 | 2 . . 1 Utility 2 | . . 1 1 Weapon 4 | . . 1 3 Tool/Special . | . . . . Average Slot Usage (%) 86 | . 100 95 83 Engine 13 | . 14 14 13 Wheel 27 | . 28 28 27 Device 2 | . 14 10 . Storage 2 | . 14 10 . Protection 10 | . . 3 13 Energy Gun 6 | . . . 8 Ballistic Gun 20 | . 28 28 18 Peak Build Rating 22 | 8 8 9 22 Average Rating 10 | 6 7 8 11 On Entrance 7 | 6 7 8 9 Naked Turns . | . . . . Heaviest Build 30 | 13 13 25 30 Greatest Support 26 | 26 20 20 20 Greatest Overweight (x) 1 | 1 . 1 1 Average Overweight (x) . | . . . . Largest Inventory Capacity 8 | 8 8 8 5 Average Capacity 5 | 8 8 7 5 Most Carried 8 | 8 8 8 5 Average Carried 5 | 6 7 7 5 Final Capacity 8 | 8 8 5 5 Final Carried 8 | 7 8 5 5 Class Distribution -------------------- 100% | Mutant Dominant Class ---------------- Mutant | -10/Materials Mutant | -10/Subcaves Mutant | -8/Scraptown Resources | -11 -10 -10 -8 ----------- Run | Yrd Mat Sub Scr Matter Collected 364 | 282 . 62 20 Remotely . | . . . . Salvage Created 100 | 100 . . . Parts 9 | 9 . . . Haulers Intercepted . | . . . . Recyclers Shooed . | . . . . Parts Field Recycled . | . . . . Retrieved Matter . | . . . . Parts Self-Destructed 4 | . . 4 . Prevented . | . . . . Kills | -11 -10 -10 -8 ------- Run | Yrd Mat Sub Scr Combat Hostiles Destroyed . | . . . . Classes Destroyed 2 | 2 . . . Tunneler 2 | 2 . . . Recycler 1 | 1 . . . Best Kill Streak 2 | 2 . . . Combat Bots Only . | . . . . Max Kills in Single Turn 1 | 1 . . . Gunslinging . | . . . . Exploded . | . . . . Melee . | . . . . Uniques/NPCs Destroyed . | . . . . Combat | -11 -10 -10 -8 -------- Run | Yrd Mat Sub Scr Hostile Shots Fired 101 | . . 2 99 Missed 36 | . . 1 35 Hits 65 | . . 1 64 Projectile 65 | . . 1 64 Critical Strikes 1 | . . . 1 Damage Taken 750 | . . 23 727 Core 254 | . . . 254 Absorbed by Shields . | . . . . Core Remaining (%) 100 | 100 . . . Volleys Fired 17 | 12 . 2 3 Largest 2 | 2 . 2 2 Hottest 75 | 40 . 40 75 Shots Fired 33 | 24 . 4 5 Gun 31 | 24 . 4 3 Cannon . | . . . . Launcher . | . . . . Special 2 | . . . 2 Kinetic 28 | 24 . 4 . Thermal 3 | . . . 3 Explosive . | . . . . Electromagnetic . | . . . . Robot Hit Streak 12 | 10 . 12 . Robot Miss Streak 3 | 3 . 1 . Penetration Max . | . . . . Secondary Targets . | . . . . Shots Hit Robots 19 | 16 . 3 . Core Hits 6 | 4 . 1 1 Critical Kills . | . . . . Critical Parts Destroyed . | . . . . Critical Strikes . | . . . . Melee Attacks . | . . . . Impact . | . . . . Slashing . | . . . . Piercing . | . . . . Sneak Attacks . | . . . . Combat Hostiles . | . . . . Follow-up Attacks . | . . . . Damage Inflicted 246 | 196 . 38 12 Guns 234 | 196 . 38 . Cannons . | . . . . Explosions . | . . . . Melee . | . . . . Ramming 12 | . . . 12 Kinetic 234 | 196 . 38 . Thermal . | . . . . Explosive . | . . . . Electromagnetic . | . . . . Impact . | . . . . Slashing . | . . . . Piercing . | . . . . Highest Corruption 35 | . . . 35 Average Corruption 23 | . . . 23 Corruption Purged . | . . . . Corruption Blocked . | . . . . Effects 4 | . . . 4 Message Errors 1 | . . . 1 Parts Rejected 1 | . . . 1 Data Loss (minor) 1 | . . . 1 Misdirections 1 | . . . 1 Overload Shots . | . . . . Overflow Damage . | . . . . Projectiles . | . . . . Explosions . | . . . . Melee . | . . . . Knockbacks . | . . . . Impact . | . . . . Kinetic . | . . . . Secondary . | . . . . Self-Inflicted Damage 5 | . . . 5 Shots . | . . . . Rammed 3 | . . . 3 Targets Rammed 3 | . . . 3 Kicked . | . . . . Crushed . | . . . . Highest Temperature 34 | . . . 34 Average Temperature 13 | . . . 13 Received Heat Transfer 6 | . . 6 . Siege Activations . | . . . . Martial Activations . | . . . . Shielding Activations . | . . . . Robots Disrupted . | . . . . Combat Hostiles . | . . . . Robots Corrupted . | . . . . Combat Hostiles . | . . . . Parts Fried . | . . . . Impact Corruptions . | . . . . Robots Melted . | . . . . Combat Hostiles . | . . . . Parts Melted . | . . . . Heat Transferred . | . . . . Parts Sabotaged . | . . . . Parts Stolen . | . . . . Parts Stripped . | . . . . Power Chain Reactions . | . . . . Alert | -11 -10 -10 -8 ------- Run | Yrd Mat Sub Scr Maximum Alert Level . | . . . . Low Security (%) 100 | 100 100 . . Level 1 . | . . . . Level 2 . | . . . . Level 3 . | . . . . Level 4 . | . . . . Level 5 . | . . . . High Security . | . . . . Max Security . | . . . . Peak Influence 5 | 5 . . . Initial . | . . . . Average . | 1 . . . Influence Increases 15 | 15 . . . Destroy 0b10 Robot/NC 15 | 15 . . . Influence Decreases 15 | 15 . . . Time Decay 15 | 15 . . . Squads Dispatched . | . . . . Investigation . | . . . . Extermination . | . . . . Reinforcement . | . . . . Assault . | . . . . Garrison . | . . . . Intercept . | . . . . Searches Triggered . | . . . . Construction Impeded . | . . . . Haulers Reinforced . | . . . . Active Scanning Responses . | . . . . Cargo Convoy Interrupts . | . . . . Stealth | -11 -10 -10 -8 --------- Run | Yrd Mat Sub Scr Distress Signals . | . . . . Communications Jammed . | . . . . Distress Signals . | . . . . Times Spotted 13 | . . 4 9 Peak Tracking Total 10 | . . 2 10 Tactical Retreats . | . . . . Traps | -11 -10 -10 -8 ------- Run | Yrd Mat Sub Scr Traps Triggered . | . . . . Indirectly . | . . . . Trap Hack Attempts . | . . . . Triggered . | . . . . Disarmed . | . . . . Reprogrammed . | . . . . Reused . | . . . . Traps Extracted . | . . . . Installed . | . . . . Triggered . | . . . . Machines | -11 -10 -10 -8 ---------- Run | Yrd Mat Sub Scr Machines Disabled 1 | . . . 1 Max in Single Turn 1 | . . . 1 Machines Repaired . | . . . . Machines Dismantled . | . . . . Machines Sabotaged . | . . . . Overloaded Fab Kills . | . . . . Hacking | -11 -10 -10 -8 --------- Run | Yrd Mat Sub Scr Machines Accessed 5 | . . . 5 Terminals . | . . . . Fabricators . | . . . . Repair Stations . | . . . . Recycling Units . | . . . . Scanalyzers . | . . . . Garrison Access . | . . . . Total Hacks 34 | . . . 34 Successful 34 | . . . 34 Failed . | . . . . Catastrophic . | . . . . Database Lockouts . | . . . . Manual . | . . . . Terminals . | . . . . Fabricators . | . . . . Repair Stations . | . . . . Recycling Units . | . . . . Scanalyzers . | . . . . Garrison Access . | . . . . Terminal Hacks 34 | . . . 34 Record 33 | . . . 33 Proto ID Catalog 1 | . . . 1 Fabricator Hacks . | . . . . Repair Station Hacks . | . . . . Recycling Unit Hacks . | . . . . Scanalyzer . | . . . . Garrison Access Hacks . | . . . . Unauthorized Hacks . | . . . . Terminals . | . . . . Fabricators . | . . . . Repair Stations . | . . . . Recycling Units . | . . . . Scanalyzers . | . . . . Garrison Access . | . . . . Data Cores Recovered . | . . . . Used . | . . . . Hacking Detections . | . . . . Full Trace Events . | . . . . Feedback Events . | . . . . Feedback Blocked . | . . . . Robot Schematics Acquired . | . . . . Robots Built . | . . . . Authchips . | . . . . Time . | . . . . Total Robot Build Rating . | . . . . Part Schematics Acquired . | . . . . Parts Built . | . . . . Authchips . | . . . . Time . | . . . . Total Part Build Rating . | . . . . Parts Repaired . | . . . . Time . | . . . . Parts Recycled . | . . . . Recycled Matter . | . . . . Retrieved Matter . | . . . . Retrieved Components . | . . . . Parts Scanalyzed . | . . . . Part Schematics Acquired . | . . . . Parts Damaged . | . . . . Bothacking | -11 -10 -10 -8 ------------ Run | Yrd Mat Sub Scr Used RIF Installer . | . . . . Robots Hacked . | . . . . Non-combat . | . . . . Combat . | . . . . Robot Hacks Applied . | . . . . Relay Couplers Released . | . . . . Fabnet Peak Effective % . | . . . . Robots Rewired . | . . . . Allies Hacked . | . . . . Hacks Repelled . | . . . . Allies | -11 -10 -10 -8 -------- Run | Yrd Mat Sub Scr Total Allies . | . . . . Largest Group . | . . . . Highest-Rated Group . | . . . . Highest-Rated Ally . | . . . . Total Orders . | . . . . Ally Attacks . | . . . . Total Damage . | . . . . Kills . | . . . . Allies Corrupted . | . . . . Allies Melted . | . . . . Intel | -11 -10 -10 -8 ------- Run | Yrd Mat Sub Scr Active Infowar (turns) 259 | 16 71 172 . Seismic 259 | 16 71 172 . Robot Analysis Total . | . . . . Derelict Logs Recovered 1 | . . . 1 Drone Launches . | . . . . Drone Recoveries . | . . . . Exploration | -11 -10 -10 -8 ------------- Run | Yrd Mat Sub Scr Turns Passed 1487 | 96 71 233 1087 Spaces Moved 1368 | 45 49 160 1114 Core . | . . . . Treads . | . . . . Legs 22 | 22 . . . Wheels 1346 | 23 49 160 1114 Hover . | . . . . Flight . | . . . . Fastest Speed 80 | 80 80 80 80 Average Speed 92 | 101 80 84 94 Slowest Speed 120 | 120 80 95 95 Overloaded Moves . | . . . . Propulsion Burnouts . | . . . . Robots Hopped . | . . . . Potential Cave-ins . | . . . . Cave-ins Triggered . | . . . . Exploration Rate (%) 27 | 4 11 20 74 Regions Visited 3 Branch Regions 2 Pre-discovered Areas . | . . . . Known Exits Taken . | . . . . Unknown Exits Taken 3 | 1 1 1 . Scrap Searched 4 | . . . 4 Spaces Dug . | . . . . Terrain Destroyed . | . . . . Melee . | . . . . Projectile . | . . . . AOE . | . . . . Terrain Rammed . | . . . . Walls Destroyed . | . . . . Machines Disabled . | . . . . Actions | -11 -10 -10 -8 --------- Run | Yrd Mat Sub Scr Total 1552 | 72 80 255 1145 Wait 116 | . 31 85 . Move 1365 | 44 48 159 1114 Hop . | . . . . Pick Up 8 | 4 1 3 . Fast Attach 5 | 2 . 1 2 Attach 1 | 1 . . . Detach . | . . . . Swap 3 | 3 . . . Drop 13 | 6 . 5 2 Fire 17 | 12 . 2 3 Melee . | . . . . Ram 3 | . . . 3 Kick . | . . . . Crush . | . . . . Escape Stasis . | . . . . Rewire 21 | . . . 21 Trap . | . . . . Miscellaneous . | . . . . Route ------- -11/Scrapyard -10/Materials -10/Subcaves -8/Scraptown (discovered 1 exit: [*Fac]) History --------- Turn | Location | Event 1 | -11/Scrapyard | Discovered new exit (range 3) 97 | -11/Scrapyard | Entered Materials 98 | -10/Materials | Met a group of wandering Federalists 126 | -10/Materials | Discovered new exit (range 7) 168 | -10/Materials | Entered Subcaves 169 | -10/Subcaves | Continued accompanying wandering Federalists (5) 169 | -10/Subcaves | Approached by a straggling Scientist 310 | -10/Subcaves | Build established: Mutant 394 | -10/Subcaves | Wandering Federalist uncovered a shortcut to Scraptown 401 | -10/Subcaves | Entered Scraptown 550 | -8/Scraptown | Visited CR-KLE's Repair Center 574 | -8/Scraptown | Visited IN-MT5's Study 614 | -8/Scraptown | Visited UFD Registry 614 | -8/Scraptown | Registered with UFD as "Fleximod" 628 | -8/Scraptown | Visited Cyclists 640 | -8/Scraptown | Entered Cyclist Reading Room 663 | -8/Scraptown | Visited SPCMW 683 | -8/Scraptown | Visited Shadow of the Wyrm 1055 | -8/Scraptown | Visited Supply Room 1082 | -8/Scraptown | Visited Red Mages 1153 | -8/Scraptown | Scanned Subdweller tech in exchange for log data 1156 | -8/Scraptown | Learned Research stockpile data 1170 | -8/Scraptown | Discovered new exit (range 5) 1311 | -8/Scraptown | Visited Scrapoid Research Area 1342 | -8/Scraptown | Visited Abandonware Association 1355 | -8/Scraptown | Learned abandonware demo "SHUTEYE.EXE" 1379 | -8/Scraptown | Visited Science Guys 1390 | -8/Scraptown | Attacked by Scraptown defenders 1398 | -8/Scraptown | Found System Spiker 1442 | -8/Scraptown | System corruption reached 10% 1442 | -8/Scraptown | System corruption reached 30% 1477 | -8/Scraptown | Core integrity fell below 50% 1486 | -8/Scraptown | Core integrity fell below 20% 1488 | -8/Scraptown | Destroyed by 1E-PDK(p) with EM Pulse Gun Last Messages --------------- 01458_ 1E-PDK(p) cannot be rewired. 01459_ 1E-PDK(p) reactivates. 01459_ Slammed into 1E-PDK(p). 01461_ Penetrated by Bolt. 01461_ Lgt. Ion Engine destroyed. 01463_ Bolt penetrates Wall. 01463_ Penetrated by Bolt. 01464_ B7-CRL(p) reactivates. 01466_ Bolt penetrates Wall. 01467_ Supplies damaged. 01473_ System Spiker destroyed. 01477_ System corrupted: Component data lost. 01477_ Plasma Rifle destroyed. 01480_ Bolt penetrates Wall. 01483_ ANNOUNCEMENT: Triborg tracking relay activated. Stay clear or you only have yourself to blame! 01483_ Supplies damaged. 01488_ Penetrated by Bolt. 01488_ Wheel destroyed. Map ----- +----------------------------------------------------+ | """""""""""""""""""""""""""" "## #?????? | | """""""""""""""""""""""""""" ???????? | | "#????????? | | "#????????? | | "#????????? | | " ##???????? | | " #???????? | | """""" """"""""""" """"""""""" " """ ##???????? | | ###### ########### ########### ###### #????????? | | # #???# # "# #????????? | | # "#???# #" # #????????? | | # " "#???# """"" #&" "" ""# #????????? | | #""" ""#???# "###" # " "" ""# #????????? | | #""" #???# "#X#" #& ""# #????????? | | #""" " #???# "# #" #"" """"# ########## | | # " """#???# #"""" """# %% | | # """#???# " " " #"" [ "# | | # """#???#"""""""""#"""" """# = | | # " " " #???###########""" X """""# | | #""""" #?????????????#"""""""""""# | | ###########?????????????############# ########## | | ????????????????????????############# #####????? | | ??????????????????"???#"""##"""##"|"# """"#????? | | ????????????# ""##" "##"""##" |##" # "" "#????? | | ?????????? p "#????? | | ?????????? @ Ep " "#????? | | ?????????? h """"#????? | | ?????????????"""##"" ##" "##!!$## "|## ######????? | | ??????????????????"???#"""##"""##"" ####?????????? | | ??????????????????????##########?####????????????? | | ?????????????????????????????????????????????????? | | ?????????????????????????????????????????????????? | | ?????????????????????????????????????????????????? | | ?????????????????????????????????????????????????? | | ?????????????????????????????????????????????????? | | ?????????????????????????????????????????????????? | | ?????????????????????????????????????????????????? | | ?????????????????????????????????????????????????? | | ?????????????????????????????????????????????????? | | ?????????????????????????????????????????????????? | | ?????????????????????????????????????????????????? | | ?????????????????????????????????????????????????? | | ?????????????????????????????????????????????????? | | ?????????????????????????????????????????????????? | | | | | | | | | | | | | +----------------------------------------------------+ Best States ------------- Heat Dissipation 25 Energy Generation 10 Energy Capacity 125 Matter Stores 300 Matter Capacity 300 Sight Range 16 Terrain Scan Density 10 Armor Coverage 800 Evasion (%) 55 Item Schematics ----------------- None Robot Schematics ------------------ None Fabricated ------------ Nothing Repaired ---------- Nothing Alien Tech Used ----------------- None Achievements -------------- None Challenges ------------ None Game ------ Seed LightningAnalysisStabilizer Manual? 0 Play Time 00:26:50 Cumulative 210.9 hours Start 2025.05.17 @ 15:15:28 End 2025.05.17 @ 18:22:30 Sessions 1 Manual Loads 0 Difficulty Rogue Special Mode None Game No. 161 Rogue 161 Adventurer 0 Explorer 0 Win Type - Total 4 Types 2/0/1/1/0/0/0/0/0/0 Lore% 44 Gallery% 69 Achievement% 64 Wizard Run 0 Options --------- Layout 1 ASCII 0 Keyboard 1 Movement Numpad Keybinds 0 Fullscreen 1 Font 48/Smallcaps Map View 55x35 Zoom Use 0% Tactical HUD 1 Map Filters NONE Filters NONE Steam 1 RUN: c03612fa-eb01-4294-bfb9-2d7da2f78f42